fUSD/lending_fUSD_20260630
["ID","MTS","AMOUNT","RATE_DAILY","PERIOD"]
[426696891,1782749443000,-631.41392488,0.00026566,2]
[426696893,1782749443000,-269.69595104,0.00026566,2]
[426696900,1782749443000,-394.21462644,0.00026567,2]
[426696904,1782749443000,-151.09934801,0.00026567,2]
[426696902,1782749443000,-679.33840772,0.00026567,2]
[426696903,1782749443000,-546.96019801,0.00026567,2]
[426696911,1782749443000,-1815933.78026173,0.000268,2]
[426696901,1782749443000,-776.85289635,0.00026567,2]
[426696905,1782749443000,-150.0,0.00026641,2]
[426696907,1782749443000,-2000.0,0.00026667,7]
[426696909,1782749443000,-151.0,0.00026797,7]
[426696910,1782749443000,-300.0,0.00026799,10]
[426696892,1782749443000,-394.25687646,0.00026566,2]
[426696912,1782749443000,-158.175411,0.000268,2]
[426696916,1782749443000,-155.312827,0.000268,2]
[426696915,1782749443000,-151.0,0.000268,2]
[426696914,1782749443000,-151.0,0.000268,2]
[426696921,1782749443000,-151.0,0.000268,2]
[426696920,1782749443000,-261.945639,0.000268,2]
[426696919,1782749443000,-151.0,0.000268,2]
[426696918,1782749443000,-151.0,0.000268,2]
[426696922,1782749443000,-151.09934801,0.00026887,2]
[426696923,1782749443000,-500.0,0.00026986,2]
[426696925,1782749443000,-500.0,0.00027078,2]
[426696924,1782749443000,-10647.08748402,0.00027,5]
[426696866,1782749443000,-438.29532393,0.00026559,2]
[426696913,1782749443000,-151.0,0.000268,2]
[426696894,1782749443000,-167.48709581,0.00026566,2]
[426696908,1782749443000,-618.65120509,0.00026689,2]
[426696895,1782749443000,-419.73813405,0.00026566,2]
[426696872,1782749443000,-259.96433623,0.00026559,2]
[426696897,1782749443000,-705.93568148,0.00026566,2]
[426696871,1782749443000,-312.38506338,0.00026559,2]
[426696869,1782749443000,-691.28391575,0.00026559,2]
[426696865,1782749443000,-206.40305492,0.00026559,2]
[426696874,1782749443000,-648.29141957,0.00026559,2]
[426696867,1782749443000,-302.41819783,0.00026559,2]
[426696870,1782749443000,-225.96549144,0.00026559,2]
[426696873,1782749443000,-317.37261329,0.00026559,2]
[426696877,1782749443000,-637.22511779,0.00026559,2]
[426696886,1782749443000,-411.9365178,0.00026566,2]
[426696884,1782749443000,-555.10343919,0.00026566,2]
[426696878,1782749443000,-606.33356953,0.00026566,2]
[426696879,1782749443000,-679.15341275,0.00026566,2]
[426696875,1782749443000,-650.0670499,0.00026559,2]
[426696890,1782749443000,-694.06796872,0.00026566,2]
[426696896,1782749443000,-166.72601345,0.00026566,2]
[426696882,1782749443000,-617.65764098,0.00026566,2]
[426696889,1782749443000,-773.62744374,0.00026566,2]
[426696887,1782749443000,-817.45661573,0.00026566,2]
[426696899,1782749443000,-585.54067836,0.00026566,2]
[426696898,1782749443000,-724.05508462,0.00026566,2]
[426696888,1782749443000,-200.06265244,0.00026566,2]
[426696883,1782749443000,-743.5331326,0.00026566,2]
[426696880,1782749443000,-584.37287135,0.00026566,2]
[426696881,1782749443000,-454.03955272,0.00026566,2]
[426696876,1782749443000,-230.79071999,0.00026559,2]
[426696885,1782749443000,-782.74310879,0.00026566,2]
[426696960,1782749444000,-1500.0,0.00027397,2]
[426696969,1782749444000,-260.30222,0.00027397,2]
[426696968,1782749444000,-151.0,0.00027397,2]
[426696967,1782749444000,-151.0,0.00027397,2]
[426696964,1782749444000,-151.0,0.00027397,2]
[426696957,1782749444000,-196.90721754,0.00027397,10]
[426696962,1782749444000,-1026.86,0.00027397,2]
[426696963,1782749444000,-151.0,0.00027397,2]
[426696971,1782749444000,-151.0,0.00027397,2]
[426696961,1782749444000,-1476.29,0.00027397,2]
[426696965,1782749444000,-151.0,0.00027397,2]
[426696972,1782749444000,-151.0,0.00027397,2]
[426696966,1782749444000,-151.0,0.00027397,2]
[426696981,1782749444000,-3930.57,0.00027397,10]
[426696973,1782749444000,-151.0,0.00027397,2]
[426696975,1782749444000,-151.0,0.00027397,2]
[426696976,1782749444000,-151.0,0.00027397,2]
[426696974,1782749444000,-151.0,0.00027397,2]
[426696977,1782749444000,-154.061996,0.00027397,2]
[426696984,1782749444000,-151.0,0.00027397,2]
[426696978,1782749444000,-3098.76,0.00027397,2]
[426696980,1782749444000,-4716.68,0.00027397,10]
[426696979,1782749444000,-5017.32,0.00027397,10]
[426696983,1782749444000,-151.0,0.00027397,2]
[426696982,1782749444000,-3275.47,0.00027397,10]
[426696985,1782749444000,-170.46881067,0.00027397,2]
[426696959,1782749444000,-396.84249185,0.00027397,2]
[426696970,1782749444000,-300.0,0.00027397,2]
[426696954,1782749444000,-196.90721754,0.00027397,10]
[426696929,1782749444000,-500.0,0.00027078,2]
[426696958,1782749444000,-150.0,0.00027397,2]
[426696987,1782749444000,-511.40643202,0.00027397,2]
[426696932,1782749444000,-971.11154434,0.00027086,2]
[426696926,1782749444000,-500.0,0.00027078,2]
[426696933,1782749444000,-920.71732077,0.00027122,2]
[426696927,1782749444000,-500.0,0.00027078,2]
[426696928,1782749444000,-500.0,0.00027078,2]
[426696931,1782749444000,-830.12342566,0.00027085,2]
[426696934,1782749444000,-808.50273592,0.00027122,2]
[426696936,1782749444000,-810.36427447,0.00027122,2]
[426696946,1782749444000,-196.90721754,0.00027397,10]
[426696947,1782749444000,-196.90721754,0.00027397,10]
[426696937,1782749444000,-812.58381238,0.00027122,2]
[426696935,1782749444000,-864.10489469,0.00027122,2]
[426696956,1782749444000,-196.90721754,0.00027397,10]
[426696940,1782749444000,-971.06612044,0.00027129,2]
[426696939,1782749444000,-867.5849609,0.00027129,2]
[426696941,1782749444000,-758.60321172,0.00027129,2]
[426696945,1782749444000,-502.0,0.00027343,11]
[426696942,1782749444000,-849.17300965,0.00027129,2]
[426696944,1782749444000,-150.0,0.00027318,5]
[426696943,1782749444000,-151.09934801,0.00027207,2]
[426696948,1782749444000,-196.90721754,0.00027397,10]
[426696950,1782749444000,-196.90721754,0.00027397,10]
[426696949,1782749444000,-196.90721754,0.00027397,10]
[426696952,1782749444000,-196.90721754,0.00027397,10]
[426696953,1782749444000,-196.90721754,0.00027397,10]
[426696951,1782749444000,-196.90721754,0.00027397,10]
[426696955,1782749444000,-196.90721754,0.00027397,10]
[426696938,1782749444000,-796.53139724,0.00027122,2]
[426696998,1782749444000,-151.09934801,0.00027527,2]
[426696930,1782749444000,-579.85520138,0.00027078,2]
[426696988,1782749444000,-681.8752427,0.00027397,2]
[426697020,1782749444000,-235.32,0.00027711,7]
[426697023,1782749444000,-235.38,0.00027711,7]
[426697022,1782749444000,-597.94,0.00027711,7]
[426697026,1782749444000,-215.53,0.00027763,7]
[426697036,1782749444000,-151.09934801,0.00027847,2]
[426697038,1782749444000,-215.42,0.00027855,7]
[426697034,1782749444000,-446.0,0.0002784,2]
[426697033,1782749444000,-1382.0,0.0002784,2]
[426697030,1782749444000,-196.90721754,0.000278,10]
[426697028,1782749444000,-215.53,0.00027794,30]
[426697032,1782749444000,-215.42,0.00027824,2]
[426697029,1782749444000,-215.42,0.00027794,30]
[426697031,1782749444000,-215.53,0.00027824,2]
[426697019,1782749444000,-601.24,0.00027711,7]
[426697027,1782749444000,-215.42,0.00027763,7]
[426697035,1782749444000,-224.0,0.0002784,2]
[426697040,1782749444000,-413.78,0.00027872,2]
[426697042,1782749444000,-235.32,0.00027872,2]
[426697041,1782749444000,-601.24,0.00027872,2]
[426697043,1782749444000,-414.01,0.00027872,2]
[426697039,1782749444000,-179.51269012,0.00027872,2]
[426697044,1782749444000,-597.94,0.00027872,2]
[426697045,1782749444000,-235.38,0.00027872,2]
[426697050,1782749444000,-996.14811079,0.00027929,2]
[426697046,1782749444000,-215.53,0.00027885,30]
[426697047,1782749444000,-215.42,0.00027885,30]
[426697049,1782749444000,-215.42,0.00027916,2]
[426696997,1782749444000,-500.0,0.000275,7]
[426697037,1782749444000,-215.53,0.00027855,7]
[426697017,1782749444000,-215.42,0.00027702,30]
[426697048,1782749444000,-215.53,0.00027916,2]
[426697015,1782749444000,-215.42,0.00027672,7]
[426696989,1782749444000,-171.53134051,0.00027397,2]
[426696986,1782749444000,-340.93762135,0.00027397,2]
[426696990,1782749444000,-343.06268102,0.00027397,2]
[426696995,1782749444000,-2065.71,0.000274,7]
[426696992,1782749444000,-155.93639075,0.00027397,2]
[426696991,1782749444000,-514.59402153,0.00027397,2]
[426696994,1782749444000,-1580.07,0.000274,7]
[426696993,1782749444000,-311.8727815,0.00027397,2]
[426697016,1782749444000,-215.53,0.00027702,30]
[426697003,1782749444000,-414.01,0.0002755,30]
[426696999,1782749444000,-413.78,0.0002755,30]
[426697002,1782749444000,-235.32,0.0002755,30]
[426697001,1782749444000,-215.53,0.0002755,2]
[426697009,1782749444000,-437.37,0.000276,7]
[426696996,1782749444000,-161.19607867,0.000274,2]
[426697007,1782749444000,-215.53,0.0002758,7]
[426697018,1782749444000,-413.78,0.00027711,7]
[426697008,1782749444000,-215.42,0.0002758,7]
[426697021,1782749444000,-414.01,0.00027711,7]
[426697025,1782749444000,-215.42,0.00027733,2]
[426697024,1782749444000,-215.53,0.00027733,2]
[426697014,1782749444000,-215.53,0.00027672,7]
[426697013,1782749444000,-215.42,0.00027641,2]
[426697000,1782749444000,-601.24,0.0002755,30]
[426697006,1782749444000,-235.38,0.0002755,30]
[426697010,1782749444000,-215.53,0.00027611,30]
[426697004,1782749444000,-597.94,0.0002755,30]
[426697011,1782749444000,-215.42,0.00027611,30]
[426697005,1782749444000,-215.42,0.0002755,2]
[426697012,1782749444000,-215.53,0.00027641,2]
[426697091,1782749445000,-500.0,0.00028093,120]
[426697088,1782749445000,-500.0,0.00028093,120]
[426697092,1782749445000,-500.0,0.00028093,120]
[426697095,1782749445000,-207.73404402,0.00028093,120]
[426697090,1782749445000,-500.0,0.00028093,120]
[426697074,1782749445000,-235.32,0.00028033,30]
[426697089,1782749445000,-500.0,0.00028093,120]
[426697097,1782749445000,-500.0,0.00028093,120]
[426697087,1782749445000,-500.0,0.00028093,120]
[426697084,1782749445000,-500.0,0.00028093,120]
[426697085,1782749445000,-500.0,0.00028093,120]
[426697086,1782749445000,-500.0,0.00028093,120]
[426697096,1782749445000,-500.0,0.00028093,120]
[426697108,1782749445000,-500.0,0.00028093,7]
[426697094,1782749445000,-500.0,0.00028093,120]
[426697101,1782749445000,-500.0,0.00028093,120]
[426697098,1782749445000,-500.0,0.00028093,120]
[426697102,1782749445000,-500.0,0.00028093,120]
[426697104,1782749445000,-500.0,0.00028093,120]
[426697099,1782749445000,-500.0,0.00028093,120]
[426697100,1782749445000,-500.0,0.00028093,120]
[426697103,1782749445000,-500.0,0.00028093,120]
[426697109,1782749445000,-500.0,0.00028093,7]
[426697107,1782749445000,-500.0,0.00028093,120]
[426697105,1782749445000,-500.0,0.00028093,120]
[426697106,1782749445000,-500.0,0.00028093,120]
[426697082,1782749445000,-273.33010035,0.00028083,2]
[426697093,1782749445000,-500.0,0.00028093,120]
[426697083,1782749445000,-500.0,0.00028093,120]
[426697063,1782749445000,-1019.00761158,0.00027974,2]
[426697081,1782749445000,-215.42,0.00028068,30]
[426697111,1782749445000,-500.0,0.00028093,7]
[426697057,1782749445000,-1036.92587362,0.00027966,2]
[426697058,1782749445000,-972.43712936,0.00027966,2]
[426697051,1782749445000,-1165.33385321,0.00027929,2]
[426697053,1782749445000,-215.42,0.00027946,7]
[426697052,1782749445000,-215.53,0.00027946,7]
[426697054,1782749445000,-852.34405337,0.00027959,2]
[426697060,1782749445000,-955.83767669,0.00027966,2]
[426697056,1782749445000,-970.20328311,0.00027966,2]
[426697055,1782749445000,-1104.86078492,0.00027966,2]
[426697059,1782749445000,-975.10057485,0.00027966,2]
[426697072,1782749445000,-413.78,0.00028033,30]
[426697061,1782749445000,-1041.10195308,0.00027973,2]
[426697064,1782749445000,-215.53,0.00027977,30]
[426697067,1782749445000,-196.90721754,0.00028,10]
[426697068,1782749445000,-196.90721754,0.00028,10]
[426697066,1782749445000,-5714.82655052,0.00028,5]
[426697069,1782749445000,-216.58458871,0.00028,10]
[426697071,1782749445000,-215.42,0.00028007,2]
[426697065,1782749445000,-215.42,0.00027977,30]
[426697070,1782749445000,-215.53,0.00028007,2]
[426697073,1782749445000,-601.24,0.00028033,30]
[426697080,1782749445000,-215.53,0.00028068,30]
[426697075,1782749445000,-414.01,0.00028033,30]
[426697078,1782749445000,-215.53,0.00028038,7]
[426697077,1782749445000,-235.38,0.00028033,30]
[426697076,1782749445000,-597.94,0.00028033,30]
[426697079,1782749445000,-215.42,0.00028038,7]
[426697121,1782749445000,-235.49,0.00028194,7]
[426697062,1782749445000,-150.0,0.00027973,2]
[426697113,1782749445000,-500.0,0.00028093,7]
[426697143,1782749445000,-492.97629467,0.000286,2]
[426697144,1782749445000,-1094.57677152,0.000286,2]
[426697146,1782749445000,-342.66032286,0.00028658,2]
[426697145,1782749445000,-175.0,0.00028632,10]
[426697147,1782749445000,-150.0,0.00028739,21]
[426697153,1782749445000,-1865.0,0.00028755,5]
[426697151,1782749445000,-320.0,0.00028741,30]
[426697152,1782749445000,-225.0,0.00028741,30]
[426697155,1782749445000,-154.0,0.00028759,30]
[426697158,1782749445000,-157.0,0.00028759,30]
[426697154,1782749445000,-158.0,0.00028759,30]
[426697156,1782749445000,-611.0,0.00028759,30]
[426697160,1782749445000,-160.0,0.00028762,30]
[426697162,1782749445000,-150.0,0.00028767,2]
[426697159,1782749445000,-588.0,0.00028762,30]
[426697161,1782749445000,-154.0,0.00028762,30]
[426697157,1782749445000,-153.0,0.00028759,30]
[426697172,1782749445000,-1195.58,0.00028925,30]
[426697164,1782749445000,-151.09934801,0.00028808,2]
[426697163,1782749445000,-1022.81286405,0.00028803,2]
[426697167,1782749445000,-166.67964073,0.000289,2]
[426697165,1782749445000,-2140.28171703,0.0002888,60]
[426697166,1782749445000,-488.76706187,0.00028882,2]
[426697170,1782749445000,-492.97629467,0.000289,2]
[426697171,1782749445000,-1094.57677152,0.000289,2]
[426697169,1782749445000,-1459.33353303,0.000289,2]
[426697173,1782749445000,-228.39852838,0.00028972,2]
[426697142,1782749445000,-182.3488221,0.000286,2]
[426697141,1782749445000,-1459.33353303,0.000286,2]
[426697168,1782749445000,-10351.40320883,0.000289,2]
[426697140,1782749445000,-10351.40320883,0.000286,2]
[426697139,1782749445000,-166.67964073,0.000286,2]
[426697114,1782749445000,-500.0,0.00028093,7]
[426697118,1782749445000,-215.52,0.0002813,7]
[426697112,1782749445000,-500.0,0.00028093,7]
[426697110,1782749445000,-500.0,0.00028093,7]
[426697115,1782749445000,-215.53,0.00028099,2]
[426697117,1782749445000,-215.56,0.0002813,7]
[426697116,1782749445000,-215.42,0.00028099,2]
[426697119,1782749445000,-151.09934801,0.00028167,2]
[426697122,1782749445000,-601.24,0.00028194,7]
[426697123,1782749445000,-235.32,0.00028194,7]
[426697124,1782749445000,-414.01,0.00028194,7]
[426697133,1782749445000,-151.09934801,0.00028487,2]
[426697134,1782749445000,-1195.58,0.000285,30]
[426697120,1782749445000,-413.78,0.00028194,7]
[426697125,1782749445000,-597.94,0.00028194,7]
[426697136,1782749445000,-216.58458871,0.00028583,2]
[426697148,1782749445000,-155.0,0.00028741,30]
[426697149,1782749445000,-159.0,0.00028741,30]
[426697138,1782749445000,-160.0,0.00028585,2]
[426697131,1782749445000,-1580.07,0.000284,7]
[426697150,1782749445000,-158.0,0.00028741,30]
[426697130,1782749445000,-152.0,0.00028351,5]
[426697129,1782749445000,-177.38,0.0002831,2]
[426697127,1782749445000,-502.0,0.00028284,12]
[426697132,1782749445000,-2065.71,0.000284,7]
[426697126,1782749445000,-235.38,0.00028194,7]
[426697135,1782749445000,-65274.0,0.000285,2]
[426697137,1782749445000,-160.0,0.00028585,2]
[426697222,1782749446000,-516.46,0.00029499,120]
[426697213,1782749446000,-1195.58,0.0002935,30]
[426697212,1782749446000,-1831.98,0.00029315,2]
[426697221,1782749446000,-500.0,0.00029499,120]
[426697219,1782749446000,-500.0,0.00029499,120]
[426697216,1782749446000,-151.09934801,0.00029448,2]
[426697218,1782749446000,-196.40084281,0.00029479,2]
[426697215,1782749446000,-437.37,0.000294,7]
[426697217,1782749446000,-1831.98,0.00029479,2]
[426697223,1782749446000,-10351.40320883,0.000295,2]
[426697231,1782749446000,-1094.57677152,0.000297,2]
[426697224,1782749446000,-1459.33353303,0.000295,2]
[426697226,1782749446000,-1094.57677152,0.000295,2]
[426697228,1782749446000,-2065.71,0.000296,7]
[426697227,1782749446000,-1580.07,0.000296,7]
[426697214,1782749446000,-150.0,0.00029372,2]
[426697229,1782749446000,-1831.98,0.00029644,2]
[426697232,1782749446000,-155.0,0.00029741,30]
[426697230,1782749446000,-492.97629467,0.000297,2]
[426697233,1782749446000,-159.0,0.00029741,30]
[426697235,1782749446000,-320.0,0.00029741,30]
[426697236,1782749446000,-225.0,0.00029741,30]
[426697225,1782749446000,-492.97629467,0.000295,2]
[426697220,1782749446000,-500.0,0.00029499,120]
[426697193,1782749446000,-502.0,0.00029224,13]
[426697210,1782749446000,-214.09006206,0.00029264,7]
[426697237,1782749446000,-158.0,0.00029759,30]
[426697174,1782749446000,-1817.32522175,0.00028973,2]
[426697175,1782749446000,-233.87,0.00029,2]
[426697176,1782749446000,-1000.0,0.00029,2]
[426697177,1782749446000,-239.21,0.00029,7]
[426697184,1782749446000,-10351.40320883,0.000292,2]
[426697185,1782749446000,-1459.33353303,0.000292,2]
[426697178,1782749446000,-216.58458871,0.00029,30]
[426697180,1782749446000,-436.6949683,0.00029,2]
[426697181,1782749446000,-151.09934801,0.00029128,2]
[426697183,1782749446000,-166.67964073,0.000292,2]
[426697186,1782749446000,-492.97629467,0.000292,2]
[426697179,1782749446000,-1430.0,0.00029,2]
[426697188,1782749446000,-5528.0,0.000292,3]
[426697204,1782749446000,-1137.61733733,0.00029232,2]
[426697200,1782749446000,-1209.74685256,0.00029232,2]
[426697202,1782749446000,-1134.50998425,0.00029232,2]
[426697206,1782749446000,-1115.14395614,0.00029232,2]
[426697198,1782749446000,-1131.90383029,0.00029232,2]
[426697189,1782749446000,-333.83,0.00029219,120]
[426697191,1782749446000,-319.55,0.0002922,120]
[426697187,1782749446000,-1094.57677152,0.000292,2]
[426697196,1782749446000,-1289.00424907,0.00029232,2]
[426697208,1782749446000,-1339.08933172,0.0002924,2]
[426697182,1782749446000,-1162.17279592,0.00029194,2]
[426697234,1782749446000,-158.0,0.00029741,30]
[426697239,1782749446000,-611.0,0.00029759,30]
[426697263,1782749446000,-249.76886183,0.000299,2]
[426697269,1782749446000,-249.76886183,0.000299,2]
[426697279,1782749446000,-12499.88,0.0003,2]
[426697268,1782749446000,-249.76886183,0.000299,2]
[426697273,1782749446000,-249.76886183,0.000299,2]
[426697270,1782749446000,-249.76886183,0.000299,2]
[426697271,1782749446000,-249.76886183,0.000299,2]
[426697272,1782749446000,-249.76886183,0.000299,2]
[426697274,1782749446000,-249.76886183,0.000299,2]
[426697275,1782749446000,-1831.98,0.00029973,2]
[426697276,1782749446000,-500.0,0.00029988,19]
[426697277,1782749446000,-151.0,0.00029997,7]
[426697280,1782749446000,-9999.86,0.0003,2]
[426697282,1782749446000,-14351.6,0.0003,2]
[426697284,1782749446000,-10351.40320883,0.0003,2]
[426697285,1782749446000,-1459.33353303,0.0003,2]
[426697283,1782749446000,-22499.88,0.0003,2]
[426697286,1782749446000,-1094.19094879,0.0003,2]
[426697288,1782749446000,-1094.57677152,0.0003,2]
[426697281,1782749446000,-14999.99,0.0003,2]
[426697289,1782749446000,-200.14986379,0.0003,2]
[426697287,1782749446000,-737035.80599441,0.0003,10]
[426697241,1782749446000,-157.0,0.00029759,30]
[426697264,1782749446000,-249.76886183,0.000299,2]
[426697267,1782749446000,-249.76886183,0.000299,2]
[426697278,1782749446000,-500.0,0.00029999,7]
[426697265,1782749446000,-249.76886183,0.000299,2]
[426697238,1782749446000,-154.0,0.00029759,30]
[426697266,1782749446000,-249.76886183,0.000299,2]
[426697240,1782749446000,-153.0,0.00029759,30]
[426697242,1782749446000,-588.0,0.00029762,30]
[426697243,1782749446000,-160.0,0.00029762,30]
[426697244,1782749446000,-154.0,0.00029762,30]
[426697246,1782749446000,-1195.58,0.00029775,30]
[426697245,1782749446000,-151.09934801,0.00029768,2]
[426697250,1782749446000,-1831.98,0.00029808,2]
[426697252,1782749446000,-196.90721754,0.000299,10]
[426697254,1782749446000,-195.90721754,0.000299,10]
[426697256,1782749446000,-249.76886183,0.000299,2]
[426697251,1782749446000,-196.90721754,0.000299,10]
[426697248,1782749446000,-1459.33353303,0.000298,2]
[426697247,1782749446000,-10351.40320883,0.000298,2]
[426697253,1782749446000,-196.90721754,0.000299,10]
[426697255,1782749446000,-249.76886186,0.000299,2]
[426697249,1782749446000,-5528.0,0.000298,5]
[426697257,1782749446000,-249.76886183,0.000299,2]
[426697260,1782749446000,-249.76886183,0.000299,2]
[426697259,1782749446000,-249.76886183,0.000299,2]
[426697258,1782749446000,-249.76886183,0.000299,2]
[426697262,1782749446000,-249.76886183,0.000299,2]
[426697261,1782749446000,-249.76886183,0.000299,2]
[426697332,1782749447000,-1000.13,0.00030136,2]
[426697333,1782749447000,-1000.13,0.00030136,2]
[426697330,1782749447000,-1000.13,0.00030136,2]
[426697327,1782749447000,-1000.13,0.00030136,2]
[426697324,1782749447000,-1000.13,0.00030136,2]
[426697321,1782749447000,-1000.13,0.00030136,2]
[426697325,1782749447000,-1000.13,0.00030136,2]
[426697322,1782749447000,-1000.13,0.00030136,2]
[426697320,1782749447000,-1000.13,0.00030136,2]
[426697326,1782749447000,-1000.13,0.00030136,2]
[426697335,1782749447000,-1000.13,0.00030136,2]
[426697323,1782749447000,-1000.13,0.00030136,2]
[426697336,1782749447000,-1000.13,0.00030136,2]
[426697343,1782749447000,-402.18706998,0.00030136,2]
[426697331,1782749447000,-1000.13,0.00030136,2]
[426697337,1782749447000,-1000.13,0.00030136,2]
[426697342,1782749447000,-502.7070817,0.00030136,2]
[426697340,1782749447000,-1000.19777974,0.00030136,2]
[426697338,1782749447000,-1000.13,0.00030136,2]
[426697334,1782749447000,-1000.13,0.00030136,2]
[426697341,1782749447000,-500.0,0.00030136,2]
[426697344,1782749447000,-300.0,0.00030136,2]
[426697355,1782749447000,-300.0,0.00030136,2]
[426697346,1782749447000,-300.0,0.00030136,2]
[426697357,1782749447000,-300.0,0.00030136,2]
[426697319,1782749447000,-1000.13,0.00030136,2]
[426697339,1782749447000,-1000.13,0.00030136,2]
[426697329,1782749447000,-1000.13,0.00030136,2]
[426697293,1782749447000,-209.84868163,0.0003,5]
[426697328,1782749447000,-1000.13,0.00030136,2]
[426697356,1782749447000,-300.0,0.00030136,2]
[426697290,1782749447000,-800.0,0.0003,2]
[426697291,1782749447000,-800.0,0.0003,2]
[426697294,1782749447000,-216.58458871,0.0003,10]
[426697295,1782749447000,-313.63636363,0.00030008,2]
[426697297,1782749447000,-333.83,0.00030041,120]
[426697296,1782749447000,-250.0,0.0003002,7]
[426697298,1782749447000,-319.55,0.00030042,120]
[426697303,1782749447000,-500.0,0.00030136,2]
[426697301,1782749447000,-30152.294812,0.0003013,2]
[426697302,1782749447000,-193.90951313,0.0003013,2]
[426697299,1782749447000,-151.09934801,0.00030088,2]
[426697300,1782749447000,-14182.49937388,0.0003013,2]
[426697304,1782749447000,-500.0,0.00030136,2]
[426697307,1782749447000,-500.0,0.00030136,2]
[426697316,1782749447000,-500.0,0.00030136,2]
[426697310,1782749447000,-500.0,0.00030136,2]
[426697309,1782749447000,-500.0,0.00030136,2]
[426697313,1782749447000,-500.0,0.00030136,2]
[426697308,1782749447000,-500.0,0.00030136,2]
[426697306,1782749447000,-500.0,0.00030136,2]
[426697312,1782749447000,-500.0,0.00030136,2]
[426697305,1782749447000,-500.0,0.00030136,2]
[426697311,1782749447000,-500.0,0.00030136,2]
[426697314,1782749447000,-500.0,0.00030136,2]
[426697315,1782749447000,-500.0,0.00030136,2]
[426697318,1782749447000,-1000.13,0.00030136,2]
[426697317,1782749447000,-1000.13,0.00030136,2]
[426697348,1782749447000,-300.0,0.00030136,2]
[426697408,1782749447000,-10351.40320883,0.000307,2]
[426697347,1782749447000,-300.0,0.00030136,2]
[426697385,1782749447000,-618.65120509,0.00030287,2]
[426697382,1782749447000,-152.5325826,0.0003018,5]
[426697390,1782749447000,-251.0,0.0003036,2]
[426697393,1782749447000,-151.09934801,0.00030408,2]
[426697386,1782749447000,-10351.40320883,0.000303,2]
[426697387,1782749447000,-1459.33353303,0.000303,2]
[426697389,1782749447000,-305.11921922,0.0003036,2]
[426697403,1782749447000,-251.0,0.0003069,2]
[426697394,1782749447000,-169.83,0.00030463,120]
[426697405,1782749447000,-251.0,0.0003069,2]
[426697404,1782749447000,-251.0,0.0003069,2]
[426697395,1782749447000,-152.5325826,0.00030477,7]
[426697391,1782749447000,-251.0,0.0003036,2]
[426697396,1782749447000,-152.0,0.00030498,6]
[426697400,1782749447000,-251.0,0.0003069,2]
[426697402,1782749447000,-251.0,0.0003069,2]
[426697401,1782749447000,-251.0,0.0003069,2]
[426697398,1782749447000,-800.0,0.000305,2]
[426697397,1782749447000,-800.0,0.000305,2]
[426697406,1782749447000,-251.0,0.0003069,2]
[426697410,1782749447000,-167.89655409,0.000307,8]
[426697411,1782749447000,-151.09934801,0.00030728,2]
[426697409,1782749447000,-1459.33353303,0.000307,2]
[426697413,1782749447000,-155.0,0.00030741,30]
[426697407,1782749447000,-251.0,0.0003069,2]
[426697414,1782749447000,-159.0,0.00030741,30]
[426697399,1782749447000,-1094.57677152,0.000306,2]
[426697392,1782749447000,-251.0,0.0003036,2]
[426697412,1782749447000,-282.89056048,0.00030734,2]
[426697384,1782749447000,-1195.58,0.000302,30]